[Event "US Masters 2024"]
[Site "Charlotte"]
[Date "2024.11.29"]
[Round "3.23"]
[White "Sattaru, Sritej Sai"]
[Black "Canty, James"]
[Result "0-1"]
[ECO "B51"]
[WhiteElo "2016"]
[BlackElo "2189"]
[Annotator "RC"]
[PlyCount "96"]
[EventDate "2024.09.23"]
[EventType "swiss"]
[EventCountry "USA"]
[SourceTitle "playchess.com"]
[Source "ChessBase"]
[SourceQuality "1"]
[TimeControl "5400+30"]

1. e4 {[%emt 0:02:45]} c5 {[%emt 0:00:11]} 2. Nf3 {[%emt 0:00:10]} d6 {[%emt 0:00:05]} 3. Bb5+ {[%emt 0:00:34]} Nd7 {[%emt 0:00:06]} 4. O-O {[%emt 0:00:52]} a6 {[%emt 0:00:48]} 5. Bd3 {[%emt 0:00:14]} Ngf6 {[%emt 0:00:31]} 6. c3 {[%emt 0:01:12]} g6 {[%emt 0:00:52]} 7. Bc2 {[%emt 0:03:15]} Bg7 {[%emt 0:00:06]} 8. d4 {[%emt 0:00:58]} cxd4 {[%emt 0:00:05]} 9. cxd4 {[%emt 0:00:12]} O-O {[%emt 0:00:06]} 10. a4 {[%emt 0:00:29]} b6 {[%emt 0:00:52]} 11. Nc3 {[%emt 0:04:22]} Bb7 {[%emt 0:02:10]} 12. h3 {[%emt 0:08:52]} Qc7 {[%emt 0:05:18]} 13. Be3 {[%emt 0:03:17]} Rac8 {[%emt 0:01:19]} 14. Rc1 {[%emt 0:03:58]} Qb8 {[%emt 0:00:20]} 15. Qd2 {[%emt 0:02:21]} b5 {[%emt 0:01:11]} 16. d5 {[%emt 0:07:43]} b4 {[%emt 0:02:24]} 17. Ne2 {[%emt 0:00:18]} a5 {[%emt 0:00:16]} 18. Bb1 {[%emt 0:10:00]} Nc5 {[%emt 0:01:04]} 19. Bxc5 {[%emt 0:01:15]} dxc5 {[%emt 0:00:43]} 20. Bd3 {[%emt 0:06:04]} c4 {[%emt 0:05:35]} 21. Rxc4 {[%emt 0:05:06]} Rxc4 {[%emt 0:00:23]} 22. Bxc4 {[%emt 0:00:07]} Nxe4 {[%emt 0:00:08]} 23. Qd3 {[%emt 0:10:07]} Nd6 {[%emt 0:04:00]} 24. b3 {[%emt 0:00:33]} Nxc4 {[%emt 0:00:09]} 25. Qxc4 {[%emt 0:00:08]} Qd6 {[%emt 0:00:42]} 26. Rd1 {[%emt 0:01:13]} Rc8 {[%emt 0:00:06]} 27. Qd3 {[%emt 0:06:46]} Rc5 {[%emt 0:00:52]} 28. Qe3 {[%emt 0:00:40]} Rxd5 {[%emt 0:01:04]} 29. Rxd5 {[%emt 0:00:38]} Bxd5 {[%emt 0:00:21]} 30. Qd3 {[%emt 0:00:20]} Bf6 {[%emt 0:01:27]} 31. Nd2 {[%emt 0:02:05]} Kg7 {[%emt 0:05:35]} 32. Nf4 {[%emt 0:01:23]} Qxf4 {[%emt 0:08:26]} 33. Qxd5 {[%emt 0:00:09]} Bc3 {[%emt 0:00:39]} 34. Nc4 {[%emt 0:01:34]} Qc1+ {[%emt 0:00:15]} 35. Kh2 {[%emt 0:00:11]} Qc2 {[%emt 0:00:12]} 36. Nxa5 {[%emt 0:01:44]} Qxf2 {[%emt 0:00:05]} 37. Qe4 {[%emt 0:01:13]} Bd2 {[%emt 0:06:06]} 38. Qe5+ {[%emt 0:01:22]} Kh6 {[%emt 0:00:38]} 39. Qa1 {[%emt 0:00:12]} Bf4+ {[%emt 0:03:28]} 40. Kh1 {[%emt 0:00:02]} e5 {[%emt 0:00:14]} 41. Nc4 {[%emt 0:00:47]} e4 {[%emt 0:00:03]} 42. Ne5 {[%emt 0:01:06]} Bxe5 {[%emt 0:01:38]} 43. Qxe5 {[%emt 0:00:02]} e3 {[%emt 0:00:09]} 44. h4 {[%emt 0:00:10]} Qxh4+ {[%emt 0:00:15]} 45. Kg1 {[%emt 0:00:09]} Qf2+ {[%emt 0:00:04]} 46. Kh2 {[%emt 0:00:14]} e2 {[%emt 0:00:06]} 47. a5 {[%emt 0:01:30]} Qh4+ {[%emt 0:00:11]} 48. Kg1 {[%emt 0:00:07]} e1=Q+ {[%emt 0:00:08]} 0-1

[Event "US Masters 2024"]
[Site "Charlotte"]
[Date "2024.11.29"]
[Round "3.24"]
[White "Belenkaya, Dina"]
[Black "Zhao, Erick"]
[Result "0-1"]
[ECO "E42"]
[WhiteElo "2151"]
[BlackElo "2387"]
[Annotator "TA"]
[PlyCount "90"]
[EventDate "2024.09.23"]
[EventType "swiss"]
[EventCountry "USA"]
[SourceTitle "playchess.com"]
[Source "ChessBase"]
[SourceQuality "1"]
[TimeControl "5400+30"]

{[%evp 20,90,-3,0,-4,-3,0,-19,-12,-25,-15,-31,-31,-25,-22,-35,-31,-39,-16,-22,-22,-34,0,0,0,0,0,0,0,-57,-13,-74,-71,-242,-112,-134,-131,-125,-125,-118,-126,-241,-197,-188,-198,-192,-170,-230,-216,-229,-165,-195,-198,-189,-190,-193,-195,-356,-256,-296,-295,-670,-333,-455,0,-633,-305,-327,-344,-316,-255,-29994,-29995]} 1. d4 {[%emt 0:06:09]} Nf6 {[%emt 0:00:26]} 2. c4 {[%emt 0:00:04]} e6 {[%emt 0:00:09]} 3. Nc3 {[%emt 0:00:27]} Bb4 {[%emt 0:00:11]} 4. e3 {[%emt 0:00:58]} O-O {[%emt 0:00:33]} 5. Bd3 {[%emt 0:00:06]} d5 {[%emt 0:00:31]} 6. Nge2 {[%emt 0:00:38]} dxc4 {[%emt 0:00:16]} 7. Bxc4 {[%emt 0:00:09]} c5 {[%emt 0:00:13]} 8. a3 {[%emt 0:00:31]} Bxc3+ {[%emt 0:00:37]} 9. Nxc3 {[%emt 0:03:26]} cxd4 {[%emt 0:03:57]} 10. exd4 {[%emt 0:01:23]} Nc6 {[%emt 0:01:38]} 11. Be3 {[%emt 0:00:35]} b6 {[%emt 0:01:25]} 12. O-O {[%emt 0:01:51]} Bb7 {[%emt 0:01:34]} 13. Qd3 {[%emt 0:08:04]} h6 {[%emt 0:12:31]} 14. Rad1 {[%emt 1:13:09]} Qc7 {[%emt 0:22:51]} 15. Qe2 {[%emt 0:00:00]} Ne7 {[%emt 0:02:51]} 16. Rc1 {[%emt 0:00:00][%cal Od4d5]} Rac8 {[%emt 0:05:39]} 17. Ba2 {[%emt 0:00:00]} Qd7 {[%emt 0:03:14] Repels Nd5} 18. Rfd1 {[%emt 0:00:00]} Ned5 {[%emt 0:40:54]} 19. Bb1 {[%emt 0:02:30]} Rfd8 {[%emt 0:00:30]} 20. Bd2 {[%emt 0:00:00]} (20. Nxd5 {simplifies} Nxd5 21. Bd2 Rxc1 22. Rxc1 Ne7 23. Bc3) 20... Nxc3 {[%emt 0:00:00]} 21. bxc3 {[%emt 0:00:00]} Qd6 {[%emt 0:00:00]} 22. Bd3 {[%emt 0:01:30]} a5 {[%emt 0:01:30]} 23. Rb1 {[%emt 0:00:30]} Ba8 {[%emt 0:00:00]} 24. Qe3 {[%emt 0:00:00]} ({White should play} 24. c4 $11) 24... e5 {[%emt 0:01:00][%cal Re5d4]} 25. Qg3 {[%emt 0:00:00]} (25. Re1 $11) 25... Be4 $17 {[%emt 0:00:00]} (25... Qxa3 26. Bxh6 Qf8 27. Qxe5 $16 (27. Rxb6 Nd5 $14) (27. dxe5 Ne4 $16)) 26. Be3 $2 {[%emt 0:00:00]} (26. dxe5 $2 Qxd3 27. f3 Nh5 $19 (27... Qxb1 $2 28. Rxb1 Nh5 29. Qe1 $19)) (26. Bxh6 $2 Nh5 (26... exd4 27. Qxg7#) 27. dxe5 Qxh6 $19) (26. Be1 $17) 26... Qe6 {[%emt 0:00:00]} (26... Qxa3 27. dxe5 (27. Rxb6 Bxd3 28. Rxf6 Qb3 $17) (27. Bxh6 Qf8 $14) 27... Bxd3 (27... Nh5 $2 28. Qg4 $18) 28. exf6 $18) (26... Bxd3 $19 {has better winning chances.} 27. Rxd3 e4 (27... Qxa3 28. Bxh6 Nh5 29. Qxe5 $11) (27... Ne4 $2 28. Qg4 $19)) 27. f3 {[%emt 0:00:00]} (27. Qxe5 $2 Qxe5 (27... Rxc3 28. Qxe6 fxe6 29. Bxe4 $11) 28. dxe5 Bxd3 $19) (27. Bxh6 $2 Nh5 (27... exd4 28. Qxg7#) 28. Qe3 Bxd3 (28... Rxc3 29. Qxe4 Qxh6 30. dxe5 $16) 29. Rxd3 Qxh6 $19 (29... gxh6 $2 30. Qd2 $19)) 27... Bxd3 {[%emt 0:00:00]} (27... Rxc3 28. fxe4 exd4 29. Bxh6 $18) 28. Rxd3 {[%emt 0:00:00][%cal Ob1e1]} e4 {[%emt 0:00:00]} 29. fxe4 {[%emt 0:00:00]} (29. Bxh6 $2 Nh5 (29... exd3 30. Qxg7#) 30. Qh4 exd3 $19) 29... Nxe4 {[%emt 0:00:00]} 30. Qh4 {[%emt 0:00:00]} (30. Qe1 $17) 30... Nc5 {[%emt 0:00:00]} (30... Nxc3 $2 31. Rxc3 Rxc3 32. Qxd8+ $18) 31. d5 {[%emt 0:00:06]} Qg6 {[%emt 0:00:00]} 32. Rdd1 {[%emt 0:00:09]} Rxd5 $1 {[%emt 0:00:00][%cal Ob6b5]} 33. Rf1 {[%emt 0:02:37]} (33. Ra1 {might work better.} Re5 34. Bd4) 33... Ne6 $19 {[%emt 0:00:00]} 34. c4 {[%emt 0:01:23]} Rh5 {[%emt 0:00:54]} 35. Qf2 {[%emt 0:01:00]} Rxc4 {[%emt 0:00:52]} 36. Rxb6 {[%emt 0:00:06]} Rc2 {[%emt 0:00:26]} 37. Qf3 {[%emt 0:00:07]} Kh7 {[%emt 0:00:29]} 38. a4 $2 {[%emt 0:01:21]} (38. Qg3) 38... Re5 {[%emt 0:00:24][%cal Oe5e3] ( -> ...Rxe3!)} 39. Bf2 {[%emt 0:00:24]} Ree2 {[%emt 0:01:49][%cal Oe6d4] Strongly threatening ...Nd4!.} ({Much less strong is} 39... Ng5 40. Qg3 f6 41. h4 $19) 40. h3 $2 {[%emt 0:00:33]} (40. Kh1) 40... Red2 {[%emt 0:01:34]} (40... Ng5 41. Qxe2 Rxe2 42. Rxg6 Kxg6 43. Bb6 $11) (40... Nd4 $142 41. Qb7 Qf5 42. Bxd4 Rxg2+ 43. Qxg2 Rxg2+ 44. Kxg2 Qe4+ 45. Rf3 Qxd4) 41. Qe3 {[%emt 0:00:20]} Re2 {[%emt 0:00:39]} 42. Qf3 {[%emt 0:00:39]} Ra2 {[%emt 0:00:02]} ({Not} 42... Ng5 43. Qxe2 Rxe2 44. Rxg6 Kxg6 45. Bb6 $15) (42... Nd4 $142 43. Qb7 Qg5) 43. Kh1 {[%emt 0:00:20]} Red2 {[%emt 0:00:50][%cal Oe6g5]} 44. h4 {[%emt 0:00:50]} Qd3 {[%emt 0:00:24]} 45. Qxf7 $2 {[%emt 0:00:28]} (45. Qxd3+ $19 Rxd3 46. Rb7) 45... Qxf1+ {[%emt 0:00:08]} 0-1